lending/lending_fUSD_20250516
["ID","MTS","AMOUNT","RATE_DAILY","PERIOD"]
[361288918,1747426248558,-500.0,0.00016438,2]
[361288919,1747426248568,-300.0,0.00016438,2]
[361288920,1747426248577,-1083.34,0.00016438,2]
[361288921,1747426248587,-400.0,0.00016438,2]
[361288922,1747426248596,-756.49,0.00016438,2]
[361288923,1747426248606,-400.0,0.00016438,2]
[361288924,1747426248615,-3025.91,0.00016438,2]
[361288925,1747426248625,-400.0,0.00016438,2]
[361288926,1747426248635,-1010.99,0.00016438,2]
[361288927,1747426248645,-400.0,0.00016438,2]
[361288928,1747426248655,-938.69,0.00016438,2]
[361288929,1747426248664,-450.0,0.00016438,2]
[361288930,1747426248674,-400.0,0.00016438,2]
[361288931,1747426248683,-400.0,0.00016438,2]
[361288932,1747426248693,-884.21,0.00016438,2]
[361288933,1747426248702,-589.57,0.00016438,2]
[361288934,1747426248711,-542.53,0.00016438,2]
[361288935,1747426248721,-400.0,0.00016438,2]
[361288936,1747426248731,-400.0,0.00016438,2]
[361288937,1747426248740,-400.0,0.00016438,2]
[361288938,1747426248749,-400.0,0.00016438,2]
[361288939,1747426248758,-856.62,0.00016438,2]
[361288940,1747426248768,-658.16,0.00016438,2]
[361288941,1747426248777,-305.1664252,0.00016438,2]
[361288942,1747426248789,-400.0,0.00016438,2]
[361288943,1747426248799,-400.0,0.00016438,2]
[361288944,1747426248808,-445.61515128,0.00016438,2]
[361288945,1747426248821,-415.98,0.00016438,2]
[361288946,1747426248831,-400.0,0.00016438,2]
[361288947,1747426248841,-400.0,0.00016438,2]
[361288948,1747426248850,-450.0,0.00016438,2]
[361288949,1747426248861,-400.0,0.00016438,2]
[361288950,1747426248871,-1231.04,0.00016438,2]
[361288951,1747426248882,-486.79,0.00016438,2]
[361288952,1747426248892,-400.0,0.00016438,2]
[361288953,1747426248902,-614.53,0.00016438,2]
[361288954,1747426248911,-400.0,0.00016438,2]
[361288955,1747426248921,-550.96,0.00016438,2]
[361288956,1747426248930,-400.0,0.00016438,2]
[361288957,1747426248940,-151.0,0.00016438,2]
[361288958,1747426248950,-400.0,0.00016438,2]
[361288959,1747426248960,-151.0,0.00016438,2]
[361288960,1747426248970,-151.0,0.00016438,2]
[361288961,1747426248980,-460.01,0.00016438,2]
[361288962,1747426248990,-400.0,0.00016438,2]
[361288963,1747426249000,-1840.95,0.00016438,2]
[361288964,1747426249009,-712.11,0.00016438,2]
[361288965,1747426249019,-508.94,0.00016438,2]
[361288966,1747426249028,-400.0,0.00016438,2]
[361288967,1747426249037,-1540.43,0.00016438,2]
[361288968,1747426249047,-1027.54,0.00016438,2]
[361288969,1747426249056,-561.06,0.00016438,2]
[361288970,1747426249066,-1894.58,0.00016438,2]
[361288971,1747426249075,-3119.43,0.00016438,2]
[361288972,1747426249085,-400.0,0.00016438,2]
[361288973,1747426249095,-400.0,0.00016438,2]
[361288974,1747426249104,-400.0,0.00016438,2]
[361288975,1747426249114,-400.0,0.00016438,2]
[361288976,1747426249124,-1318.73,0.00016438,2]
[361288977,1747426249133,-400.0,0.00016438,2]
[361288978,1747426249143,-12626.7,0.00016438,2]
[361288979,1747426249153,-400.0,0.00016438,2]
[361288980,1747426249162,-400.0,0.00016438,2]
[361288981,1747426249172,-7263.49,0.00016438,2]
[361288982,1747426249181,-400.0,0.00016438,2]
[361288983,1747426249190,-182.67149259,0.00016438,2]
[361288984,1747426249201,-400.0,0.00016438,2]
[361288985,1747426249210,-151.0,0.00016438,2]
[361288986,1747426249220,-400.0,0.00016438,2]
[361288987,1747426249229,-151.0,0.00016438,2]
[361288988,1747426249240,-1849.45,0.00016438,2]
[361288989,1747426249250,-151.0,0.00016438,2]
[361288990,1747426249260,-2318.32,0.00016438,2]
[361288991,1747426249270,-400.0,0.00016438,2]
[361288992,1747426249279,-400.0,0.00016438,2]
[361288993,1747426249288,-400.0,0.00016438,2]
[361288994,1747426249298,-400.0,0.00016438,2]
[361288995,1747426249307,-1304.84,0.00016438,2]
[361288996,1747426249316,-400.0,0.00016438,2]
[361288997,1747426249326,-151.0,0.00016438,2]
[361288998,1747426249336,-151.0,0.00016438,2]
[361288999,1747426249346,-7188.53,0.00016438,2]
[361289000,1747426249355,-797.6,0.00016438,2]
[361289001,1747426249365,-151.0,0.00016438,2]
[361289002,1747426249375,-400.0,0.00016438,2]
[361289003,1747426249384,-755.75,0.00016438,2]
[361289004,1747426249394,-400.0,0.00016438,2]
[361289005,1747426249403,-400.0,0.00016438,2]
[361289006,1747426249413,-400.0,0.00016438,2]
[361289007,1747426249423,-400.0,0.00016438,2]
[361289008,1747426249432,-2042.96,0.00016438,2]
[361289009,1747426249441,-450.0,0.00016438,2]
[361289010,1747426249451,-400.0,0.00016438,2]
[361289011,1747426249460,-450.19,0.00016438,2]
[361289012,1747426249470,-400.0,0.00016438,2]
[361289013,1747426249479,-3621.3,0.00016438,2]
[361289014,1747426249489,-400.0,0.00016438,2]
[361289015,1747426249499,-1563.09,0.00016438,2]
[361289016,1747426249508,-400.0,0.00016438,2]
[361289017,1747426249518,-400.0,0.00016438,2]
[361289018,1747426249527,-400.0,0.00016438,2]
[361289019,1747426249619,-400.0,0.00016438,2]
[361289020,1747426249628,-1196.28,0.00016438,2]
[361289021,1747426249638,-1576.06,0.00016438,2]
[361289022,1747426249648,-610.58,0.00016438,2]
[361289023,1747426249658,-1011.24,0.00016438,2]
[361289024,1747426249668,-1791.45,0.00016438,2]
[361289025,1747426249677,-400.0,0.00016438,2]
[361289026,1747426249686,-400.0,0.00016438,2]
[361289027,1747426249695,-400.0,0.00016438,2]
[361289028,1747426249704,-3969.63,0.00016438,2]
[361289029,1747426249714,-1139.13,0.00016438,2]
[361289030,1747426249723,-400.0,0.00016438,2]
[361289031,1747426249733,-203.092698,0.00016438,2]
[361289032,1747426249741,-851.76,0.00016438,2]
[361289033,1747426249751,-400.0,0.00016438,2]
[361289034,1747426249760,-454.49168778,0.00016438,2]
[361289035,1747426249769,-400.0,0.00016438,2]
[361289036,1747426249778,-3182.98,0.00016438,2]
[361289037,1747426249792,-400.0,0.00016438,2]
[361289038,1747426249801,-989.31,0.00016438,2]
[361289039,1747426249810,-911.27,0.00016438,2]
[361289040,1747426249819,-3303.23,0.00016438,2]
[361289041,1747426249829,-3317.75,0.00016438,2]
[361289042,1747426249838,-180.9059258,0.00016438,2]
[361289043,1747426249847,-400.0,0.00016438,2]
[361289044,1747426249857,-400.0,0.00016438,2]
[361289045,1747426249867,-670.82,0.00016438,2]
[361289046,1747426249876,-400.0,0.00016438,2]
[361289047,1747426249885,-400.0,0.00016438,2]
[361289048,1747426249894,-197.554189,0.00016438,2]
[361289049,1747426249902,-556.5,0.00016438,2]
[361289050,1747426249911,-2333.45,0.00016438,2]
[361289051,1747426249920,-151.0,0.00016438,2]
[361289052,1747426249929,-2142.68,0.00016438,2]
[361289053,1747426249939,-151.0,0.00016438,2]
[361289054,1747426249949,-400.0,0.00016438,2]
[361289055,1747426249958,-151.0,0.00016438,2]
[361289056,1747426249967,-400.0,0.00016438,2]
[361289057,1747426249976,-450.0,0.00016438,2]
[361289058,1747426249985,-794.117652,0.00016438,2]
[361289059,1747426249994,-400.0,0.00016438,2]
[361289060,1747426250003,-794.117652,0.00016438,2]
[361289061,1747426250012,-2007.06,0.00016438,2]
[361289062,1747426250022,-400.0,0.00016438,2]
[361289063,1747426250031,-151.0,0.00016438,2]
[361289064,1747426250040,-400.0,0.00016438,2]
[361289065,1747426250049,-821.45,0.00016438,2]
[361289066,1747426250058,-151.0,0.00016438,2]
[361289067,1747426250067,-462.72,0.00016438,2]
[361289068,1747426250076,-151.0,0.00016438,2]
[361289069,1747426250085,-400.0,0.00016438,2]
[361289070,1747426250094,-794.117652,0.00016438,2]
[361289071,1747426250103,-794.117652,0.00016438,2]
[361289072,1747426250114,-1660.77,0.00016438,2]
[361289073,1747426250123,-2863.57,0.00016438,2]
[361289074,1747426250133,-411.24,0.00016438,2]
[361289075,1747426250143,-1184.07,0.00016438,2]
[361289076,1747426250152,-971.77,0.00016438,2]
[361289077,1747426250162,-400.0,0.00016438,2]
[361289078,1747426250171,-400.0,0.00016438,2]
[361289079,1747426250179,-400.0,0.00016438,2]
[361289080,1747426250188,-400.0,0.00016438,2]
[361289081,1747426250197,-800.17,0.00016438,2]
[361289082,1747426250206,-400.0,0.00016438,2]
[361289083,1747426250216,-400.0,0.00016438,2]
[361289084,1747426250225,-400.0,0.00016438,2]
[361289085,1747426250234,-889.95,0.00016438,2]
[361289086,1747426250243,-402.95210564,0.00016438,2]
[361289087,1747426250253,-442.59,0.00016438,2]
[361289088,1747426250263,-400.0,0.00016438,2]
[361289089,1747426250272,-1206.91,0.00016438,2]
[361289090,1747426250281,-400.0,0.00016438,2]
[361289091,1747426250290,-2898.19,0.00016438,2]
[361289092,1747426250299,-400.0,0.00016438,2]
[361289093,1747426250308,-151.0,0.00016438,2]
[361289094,1747426250317,-151.0,0.00016438,2]
[361289095,1747426250327,-400.0,0.00016438,2]
[361289096,1747426250338,-151.0,0.00016438,2]
[361289097,1747426250348,-3478.05,0.00016438,2]
[361289098,1747426250357,-1018.02,0.00016438,2]
[361289099,1747426250366,-400.0,0.00016438,2]
[361289100,1747426250377,-195.28955756,0.00016438,2]
[361289101,1747426250386,-400.0,0.00016438,2]
[361289102,1747426250395,-400.0,0.00016438,2]
[361289103,1747426250405,-400.0,0.00016438,2]
[361289104,1747426250415,-400.0,0.00016438,2]
[361289105,1747426250424,-899.06,0.00016438,2]
[361289106,1747426250433,-400.0,0.00016438,2]
[361289107,1747426250443,-450.0,0.00016438,2]
[361289108,1747426250452,-400.0,0.00016438,2]
[361289109,1747426250462,-15828.3,0.00016438,2]
[361289110,1747426250471,-792.21,0.00016438,2]
[361289111,1747426250481,-3102.61,0.00016438,2]
[361289112,1747426250490,-3117.44,0.00016438,2]
[361289113,1747426250499,-1572.59,0.00016438,2]
[361289114,1747426250508,-11945.33,0.00016438,2]
[361289115,1747426250517,-151.0,0.00016438,2]
[361289116,1747426250526,-502.12572798,0.00016438,2]
[361289117,1747426250537,-151.0,0.00016438,2]
[361289118,1747426250546,-151.0,0.00016438,2]
[361289119,1747426250555,-400.0,0.00016438,2]
[361289120,1747426250564,-2817.85,0.00016438,2]
[361289121,1747426250574,-482.81,0.00016438,2]
[361289122,1747426250583,-151.0,0.00016438,2]
[361289123,1747426250592,-400.0,0.00016438,2]
[361289124,1747426250601,-175.258332,0.00016438,2]
[361289125,1747426250611,-438.98648842,0.00016438,2]
[361289126,1747426250620,-400.0,0.00016438,2]
[361289127,1747426250629,-400.0,0.00016438,2]
[361289128,1747426250638,-400.0,0.00016438,2]
[361289129,1747426250647,-647.84,0.00016438,2]
[361289130,1747426250657,-151.0,0.00016438,2]
[361289131,1747426250666,-151.0,0.00016438,2]
[361289132,1747426250675,-706.64,0.00016438,2]
[361289133,1747426250685,-151.0,0.00016438,2]
[361289134,1747426250694,-450.0,0.00016438,2]
[361289135,1747426250703,-400.0,0.00016438,2]
[361289136,1747426250712,-400.0,0.00016438,2]
[361289137,1747426250722,-1181.06,0.00016438,2]
[361289138,1747426250731,-2554.49,0.00016438,2]
[361289139,1747426250740,-402.49938846,0.00016438,2]
[361289140,1747426250750,-7012.42,0.00016438,2]
[361289141,1747426250759,-450.0,0.00016438,2]
[361289142,1747426250768,-400.0,0.00016438,2]
[361289143,1747426250778,-1007.91,0.00016438,2]
[361289144,1747426250792,-2408.22,0.00016438,2]
[361289145,1747426250802,-1249.97,0.00016438,2]
[361289146,1747426250811,-1053.01,0.00016438,2]
[361289147,1747426250820,-400.0,0.00016438,2]
[361289148,1747426250830,-452.24783293,0.00016438,2]
[361289149,1747426250839,-5447.95,0.00016438,2]
[361289150,1747426250848,-450.0,0.00016438,2]
[361289151,1747426250859,-151.0,0.00016438,2]
[361289152,1747426250868,-400.0,0.00016438,2]
[361289153,1747426250877,-151.0,0.00016438,2]
[361289154,1747426250886,-400.0,0.00016438,2]
[361289155,1747426250896,-1955.8,0.00016438,2]
[361289156,1747426250905,-187.58135693,0.00016438,2]
[361289157,1747426250914,-400.0,0.00016438,2]
[361289158,1747426250923,-1443.56,0.00016438,2]
[361289159,1747426250932,-400.0,0.00016438,2]
[361289160,1747426250941,-400.0,0.00016438,2]
[361289161,1747426250950,-450.0,0.00016438,2]
[361289162,1747426250959,-467.46,0.00016438,2]
[361289163,1747426250968,-1053.67,0.00016438,2]
[361289164,1747426250977,-530.82,0.00016438,2]
[361289165,1747426250986,-8692.09,0.00016438,2]
[361289166,1747426250995,-400.0,0.00016438,2]
[361289167,1747426251004,-1366.11,0.00016438,2]
[361289168,1747426251014,-1286.34,0.00016438,2]
[361289169,1747426251023,-604.64,0.00016438,2]
[361289170,1747426251032,-1292.1,0.00016438,2]
[361289171,1747426251040,-759.5,0.00016438,2]
[361289172,1747426251050,-400.0,0.00016438,2]
[361289173,1747426251059,-516.93,0.00016438,2]
[361289174,1747426251069,-2894.19,0.00016438,2]
[361289175,1747426251078,-857.07,0.00016438,2]
[361289176,1747426251087,-400.0,0.00016438,2]
[361289177,1747426251097,-159.124027,0.00016438,2]
[361289178,1747426251106,-2279.03,0.00016438,2]
[361289179,1747426251116,-400.0,0.00016438,2]
[361289180,1747426251125,-400.0,0.00016438,2]
[361289181,1747426251134,-169.328361,0.00016438,2]
[361289182,1747426251143,-400.0,0.00016438,2]
[361289183,1747426251152,-485.68,0.00016438,2]
[361289184,1747426251161,-400.0,0.00016438,2]
[361289185,1747426251170,-400.0,0.00016438,2]
[361289186,1747426251179,-400.0,0.00016438,2]
[361289187,1747426251188,-400.0,0.00016438,2]
[361289188,1747426251197,-949.05,0.00016438,2]
[361289189,1747426251206,-902.44,0.00016438,2]
[361289190,1747426251215,-10956.5,0.00016438,2]
[361289191,1747426251224,-853.75,0.00016438,2]
[361289192,1747426251233,-524.87,0.00016438,2]
[361289193,1747426251242,-7763.45,0.00016438,2]
[361289194,1747426251251,-5592.41,0.00016438,2]
[361289195,1747426251260,-400.0,0.00016438,2]
[361289196,1747426251269,-434.51,0.00016438,2]
[361289197,1747426251279,-400.0,0.00016438,2]
[361289198,1747426251288,-561.81,0.00016438,2]
[361289199,1747426251297,-2654.68,0.00016438,2]
[361289200,1747426251306,-644.93,0.00016438,2]
[361289201,1747426251318,-2941.2,0.00016438,2]
[361289202,1747426251328,-623.34,0.00016438,2]
[361289203,1747426251340,-721.09,0.00016438,2]
[361289204,1747426251350,-400.0,0.00016438,2]
[361289205,1747426251361,-512.28089464,0.00016438,2]
[361289206,1747426251370,-693.92,0.00016438,2]
[361289207,1747426251379,-574.76,0.00016438,2]
[361289208,1747426251388,-430.8,0.00016438,2]
[361289209,1747426251397,-955.3,0.00016438,2]
[361289210,1747426251406,-400.0,0.00016438,2]
[361289211,1747426251415,-655.34,0.00016438,2]
[361289212,1747426251424,-400.0,0.00016438,2]
[361289213,1747426251433,-1389.48,0.00016438,2]
[361289214,1747426251442,-1358.52,0.00016438,2]
[361289215,1747426251450,-7419.37,0.00016438,2]
[361289216,1747426251459,-500.0,0.00016438,2]
[361289217,1747426251468,-500.0,0.00016438,2]
[361289218,1747426251478,-221.93517456,0.00016438,2]
[361289219,1747426251487,-500.0,0.00016438,2]
[361289220,1747426251496,-1999.48,0.00016438,2]
[361289221,1747426251505,-500.0,0.00016438,2]
[361289222,1747426251514,-357.39296536,0.00016438,2]
[361289223,1747426251524,-500.0,0.00016438,2]
[361289224,1747426251534,-400.0,0.00016438,2]
[361289225,1747426251543,-500.0,0.00016438,2]
[361289226,1747426251551,-860.29,0.00016438,2]
[361289227,1747426251562,-400.0,0.00016438,2]
[361289228,1747426251571,-400.0,0.00016438,2]
[361289229,1747426251581,-400.0,0.00016438,2]
[361289230,1747426251590,-586.68,0.00016438,2]
[361289231,1747426251599,-265.84265754,0.00016438,2]
[361289232,1747426251608,-500.0,0.00016438,2]
[361289233,1747426251618,-400.0,0.00016438,2]
[361289234,1747426251627,-400.16,0.00016438,2]
[361289235,1747426251636,-400.0,0.00016438,2]
[361289236,1747426251646,-400.0,0.00016438,2]
[361289237,1747426251654,-400.0,0.00016438,2]
[361289238,1747426251663,-2035.15,0.00016438,2]
[361289239,1747426251673,-1099.8,0.00016438,2]
[361289240,1747426251682,-805.47,0.00016438,2]
[361289241,1747426251691,-400.0,0.00016438,2]
[361289242,1747426251700,-22631.55,0.00016438,2]
[361289243,1747426251710,-400.0,0.00016438,2]
[361289244,1747426251719,-527.31,0.00016438,2]
[361289245,1747426251727,-1138.22,0.00016438,2]
[361289246,1747426251736,-993.35,0.00016438,2]
[361289247,1747426251745,-602.14,0.00016438,2]
[361289248,1747426251755,-400.0,0.00016438,2]
[361289249,1747426251764,-400.0,0.00016438,2]
[361289250,1747426251773,-500.0,0.00016438,2]
[361289251,1747426251783,-759.68,0.00016438,2]
[361289252,1747426251795,-151.0,0.00016438,2]
[361289253,1747426251804,-400.0,0.00016438,2]
[361289254,1747426251813,-151.0,0.00016438,2]
[361289255,1747426251822,-12280.2,0.00016438,2]
[361289256,1747426251832,-151.0,0.00016438,2]
[361289257,1747426251842,-447.24,0.00016438,2]
[361289258,1747426251851,-400.0,0.00016438,2]
[361289259,1747426251861,-1647.99,0.00016438,2]
[361289260,1747426251872,-238.19275453,0.00016438,2]
[361289261,1747426251881,-400.0,0.00016438,2]
[361289262,1747426251890,-400.0,0.00016438,2]
[361289263,1747426251899,-1605.37,0.00016438,2]
[361289264,1747426251909,-709.35,0.00016438,2]
[361289265,1747426251918,-2103.15,0.00016438,2]
[361289266,1747426251927,-626.63,0.00016438,2]
[361289267,1747426251935,-509.99445656,0.00016438,2]
[361289268,1747426251944,-19583.11,0.00016438,2]
[361289269,1747426251954,-500.0,0.00016438,2]
[361289270,1747426251966,-400.0,0.00016438,2]
[361289271,1747426251975,-400.0,0.00016438,2]
[361289272,1747426251984,-401.48,0.00016438,2]
[361289273,1747426251993,-866.68,0.00016438,2]
[361289274,1747426252003,-400.0,0.00016438,2]
[361289275,1747426252012,-3893.07,0.00016438,2]
[361289276,1747426252021,-151.0,0.00016438,2]
[361289277,1747426252030,-151.0,0.00016438,2]
[361289278,1747426252039,-1600.63,0.00016438,2]
[361289279,1747426252048,-1183.05,0.00016438,2]
[361289280,1747426252057,-400.0,0.00016438,2]
[361289281,1747426252066,-20330.51,0.00016438,2]
[361289282,1747426252075,-400.0,0.00016438,2]
[361289283,1747426252084,-2080.51,0.00016438,2]
[361289284,1747426252093,-157032.07,0.00016438,2]
[361289285,1747426252102,-1457.55,0.00016438,2]
[361289286,1747426252112,-400.0,0.00016438,2]
[361289287,1747426252126,-400.0,0.00016438,2]
[361289288,1747426252135,-576.9,0.00016438,2]
[361289289,1747426252145,-1174.68,0.00016438,2]
[361289290,1747426252155,-403.39,0.00016438,2]
[361289291,1747426252164,-1393.44,0.00016438,2]
[361289292,1747426252173,-3972.41,0.00016438,2]
[361289293,1747426252182,-525.68,0.00016438,2]
[361289294,1747426252191,-1521.05,0.00016438,2]
[361289295,1747426252200,-3041.86,0.00016438,2]
[361289296,1747426252209,-1676.08,0.00016438,2]
[361289297,1747426252220,-5556.56,0.00016438,2]
[361289298,1747426252230,-151.0,0.00016438,2]
[361289299,1747426252238,-585.65,0.00016438,2]
[361289300,1747426252248,-151.0,0.00016438,2]
[361289301,1747426252257,-151.0,0.00016438,2]
[361289302,1747426252266,-1035.66,0.00016438,2]
[361289303,1747426252275,-400.0,0.00016438,2]
[361289304,1747426252284,-400.0,0.00016438,2]
[361289305,1747426252293,-400.0,0.00016438,2]
[361289306,1747426252302,-400.0,0.00016438,2]
[361289307,1747426252311,-400.0,0.00016438,2]
[361289308,1747426252321,-1300.22,0.00016438,2]
[361289309,1747426252330,-1300.22,0.00016438,2]
[361289310,1747426252339,-1300.22,0.00016438,2]
[361289311,1747426252348,-1300.22,0.00016438,2]
[361289312,1747426252357,-450.0,0.00016438,2]
[361289313,1747426252367,-1300.22,0.00016438,2]
[361289314,1747426252376,-1300.22,0.00016438,2]
[361289315,1747426252385,-1873.5,0.00016438,2]
[361289316,1747426252394,-11300.04,0.00016438,2]
[361289317,1747426252403,-1300.22,0.00016438,2]
[361289318,1747426252412,-151.0,0.00016438,2]
[361289319,1747426252421,-400.0,0.00016438,2]
[361289320,1747426252430,-151.0,0.00016438,2]
[361289321,1747426252439,-747.94,0.00016438,2]
[361289322,1747426252448,-452.32,0.00016438,2]
[361289323,1747426252457,-328.50370557,0.00016438,2]
[361289324,1747426252466,-400.0,0.00016438,2]
[361289325,1747426252475,-400.0,0.00016438,2]
[361289326,1747426252485,-400.0,0.00016438,2]
[361289327,1747426252494,-151.0,0.00016438,2]
[361289328,1747426252503,-151.0,0.00016438,2]
[361289329,1747426252512,-1607.29,0.00016438,2]
[361289330,1747426252521,-400.0,0.00016438,2]
[361289331,1747426252530,-151.0,0.00016438,2]
[361289332,1747426252539,-400.0,0.00016438,2]
[361289333,1747426252548,-1367.57,0.00016438,2]
[361289334,1747426252559,-1136.05,0.00016438,2]
[361289335,1747426252568,-554.026883,0.00016438,2]
[361289336,1747426252577,-554.026883,0.00016438,2]
[361289337,1747426252585,-151.0,0.00016438,2]
[361289338,1747426252595,-554.026883,0.00016438,2]
[361289339,1747426252605,-251.143176,0.00016438,2]
[361289340,1747426252614,-2082.57,0.00016438,2]
[361289341,1747426252623,-418.24,0.00016438,2]
[361289342,1747426252634,-837.86,0.00016438,2]
[361289343,1747426252643,-500.0,0.00016473,2]
[361289344,1747426252652,-632.83391156,0.00016473,2]
[361289345,1747426252661,-500.0,0.00016473,2]
[361289346,1747426252671,-609.17233242,0.00016473,2]
[361289347,1747426252679,-500.0,0.00016473,2]
[361289348,1747426252688,-500.0,0.00016473,2]
[361289349,1747426252698,-500.0,0.00016473,2]
[361289350,1747426252707,-500.0,0.00016473,2]
[361289351,1747426252715,-500.0,0.00016473,2]
[361289352,1747426252724,-501.49882127,0.00016473,2]
[361289353,1747426252733,-500.0,0.00016473,2]
[361289354,1747426252742,-500.0,0.00016473,2]
[361289355,1747426252751,-500.0,0.00016473,2]
[361289356,1747426252760,-500.0,0.00016473,2]
[361289357,1747426252769,-503.57995522,0.00016473,2]
[361289358,1747426252778,-285.06057263,0.00016493,10]
[361289359,1747426252790,-6417.8683815,0.00016494,2]
[361289360,1747426252799,-8086.1135274,0.00016494,2]
[361289361,1747426252808,-5118.9954076,0.00016494,2]
[361289362,1747426252817,-32690.1199859,0.00016494,2]
[361289363,1747426252826,-859.5390482,0.00016494,2]
[361289364,1747426252836,-1342.662288,0.00016494,2]
[361289365,1747426252847,-38122.1146917,0.00016494,2]
[361289366,1747426252855,-720.4098141,0.00016494,2]
[361289367,1747426252865,-151.0,0.00016494,2]
[361289368,1747426252874,-151.0,0.00016495,2]
[361289369,1747426252883,-151.0,0.00016495,2]
[361289370,1747426252893,-794.117652,0.00016495,2]
[361289371,1747426252902,-794.117652,0.00016495,2]
[361289372,1747426252911,-500.0,0.00016499,2]
[361289373,1747426252920,-149846.88616217,0.000165,2]
[361289374,1747426252931,-151.0,0.000165,2]
[361289375,1747426252942,-151.0,0.000165,2]
[361289376,1747426252953,-151.0,0.000165,2]
[361289377,1747426252963,-154.193406,0.000165,2]
[361289378,1747426252972,-353.05,0.000165,2]
[361289379,1747426252981,-150.0,0.000165,2]
[361289380,1747426252991,-151.0,0.000165,2]
[361289381,1747426252999,-151.0,0.000165,2]
[361289382,1747426253008,-151.0,0.000165,2]
[361289383,1747426253017,-151.0,0.000165,2]
[361289384,1747426253027,-248.001577,0.000165,2]
[361289385,1747426253038,-203.322348,0.000165,2]
[361289386,1747426253048,-151.0,0.000165,2]
[361289387,1747426253059,-151.0,0.000165,2]
[361289388,1747426253068,-260.935554,0.000165,2]
[361289389,1747426253079,-260.935554,0.000165,2]
[361289390,1747426253088,-587.956256,0.000165,2]
[361289391,1747426253097,-428.908007,0.000165,2]
[361289392,1747426253106,-587.956256,0.000165,2]
[361289393,1747426253115,-428.908007,0.000165,2]
[361289394,1747426253123,-151.0,0.000165,2]
[361289395,1747426253132,-151.0,0.000165,2]
[361289396,1747426253141,-151.0,0.000165,2]
[361289397,1747426253150,-151.0,0.000165,2]
[361289398,1747426253159,-151.0,0.000165,2]
[361289399,1747426253167,-151.0,0.000165,2]
[361289400,1747426253176,-151.0,0.000165,2]
[361289401,1747426253185,-554.026883,0.000165,2]
[361289402,1747426253194,-1300.22,0.00016504,2]
[361289403,1747426253203,-500.0,0.00016505,2]
[361289404,1747426253212,-151.0,0.00016506,2]
[361289405,1747426253220,-151.0,0.00016506,2]
[361289406,1747426253229,-151.0,0.00016506,2]
[361289407,1747426253238,-151.0,0.00016506,2]
[361289408,1747426253247,-151.0,0.00016506,2]
[361289409,1747426253256,-12870.2593692,0.00016521,2]
[361289410,1747426253265,-12524.95722948,0.00016521,2]
[361289411,1747426253274,-2275.87508453,0.00016521,2]
[361289412,1747426253283,-1156.61,0.000166,2]
[361289413,1747426253291,-353.05,0.000166,2]
[361289414,1747426253300,-150.87,0.000166,2]
[361289415,1747426253309,-150.58,0.000166,2]
[361289416,1747426253318,-150.0,0.000166,2]
[361289417,1747426253327,-353.05,0.000166,2]